Cogmind - Beta 14 @@@ ROGUE MODE // 2025.04.26 @ 14:29:02 Player: amhuman Result: Destroyed by F7-3NC(R) with Subdweller Shrapnel Launcher Performance ------------- Evolutions (0) 0 Regions Visited (3) 600 Robots Destroyed (21) 105 Value Destroyed (488) 488 Prototype IDs (0) 0 Alien Tech Used (0) 0 Bonus (0) 0 TOTAL SCORE: 1193 Bonus ------- None Cogmind --------- Core Integrity 0/250 Matter 113/300 Energy 227/250 System Corruption 0% Temperature Cool (0) Movement Rolling (110) Ox2 Location -10/Subcaves Parts ------- > --- POWER (1) -------- Ion Engine > --- PROPULSION (2) --- Wheel > --- UTILITY (2) ------ High-capacity Storage Unit Weight Redist. System > --- WEAPON (2) ------- Mini Grenade Launcher > --- INVENTORY (20) --- Subdweller Power Source Subdweller Power Source Improved Aluminum Leg Wheel Heat Sink Large Storage Unit Large Matter Pod (150) Subdweller Optics Subdweller Optics Sensor Array Seismic Detector Light Armor Plating Scrap Shield Assault Rifle Light Assault Rifle Subdweller Shrapnel Launcher Stasis Trap (100%) Peak State ------------ > --- POWER ------------ Subdweller Power Source > --- PROPULSION ------- Subdweller Monowheel Subdweller Monowheel > --- UTILITY ---------- High-capacity Storage Unit Weight Redist. System > --- WEAPON ----------- Mini Grenade Launcher Mini Grenade Launcher > --- INVENTORY -------- Subdweller Power Source Improved Aluminum Leg Wheel Wheel Heat Sink Large Storage Unit Large Matter Pod Subdweller Optics Subdweller Optics Sensor Array Seismic Detector Light Armor Plating Scrap Shield Assault Rifle Light Assault Rifle Mini Grenade Launcher Subdweller Shrapnel Launcher Stasis Trap [Rating: 15] Favorites ----------- Power Light Ion Engine Engine Light Ion Engine Propulsion Improved Aluminum Leg Treads Light Treads Leg Improved Aluminum Leg Wheel Subdweller Monowheel Utility Weight Redist. System Device Weight Redist. System Storage Large Storage Unit Weapon Mini Grenade Launcher Energy Gun Medium Laser Ballistic Gun Assault Rifle Ballistic Cannon Light Cannon Launcher Mini Grenade Launcher Special Weapon Mining Laser Build | -11 -10 -10 -10 ------- Run | Yrd Mat Min Sub Slots Evolved . | . . . . Power . | . . . . Propulsion . | . . . . Utility . | . . . . Weapon . | . . . . Parts Attached 32 | 6 6 8 12 Power 4 | 1 . 1 2 Engine 4 | 1 . 1 2 Core . | . . . . Reactor . | . . . . Propulsion 8 | 2 2 . 4 Treads 2 | 2 . . . Leg 3 | . 2 . 1 Wheel 3 | . . . 3 Hover . | . . . . Flight . | . . . . Utility 6 | 1 2 2 1 Device 3 | . 1 2 . Storage 3 | 1 1 . 1 Processor . | . . . . Hackware . | . . . . Protection . | . . . . Artifact . | . . . . Weapon 14 | 2 2 5 5 Energy Gun 3 | 2 . 1 . Energy Cannon . | . . . . Ballistic Gun 2 | . 1 . 1 Ballistic Cannon 1 | . . . 1 Launcher 6 | . 1 2 3 Special Weapon 2 | . . 2 . Impact Weapon . | . . . . Slashing Weapon . | . . . . Piercing Weapon . | . . . . Special Melee Weapon . | . . . . Unidentified Prototypes . | . . . . Parts Lost 6 | . . 1 5 Power 1 | . . 1 . Propulsion 2 | . . . 2 Utility . | . . . . Weapon 3 | . . . 3 Highest Loss Streak 2 | . . 1 2 To Critical Strikes . | . . . . Average Slot Usage (%) 94 | . 90 99 86 Engine 13 | . 14 13 14 Treads 1 | . 12 . . Leg 18 | . 16 28 3 Wheel 6 | . . . 21 Device 12 | . 4 14 14 Storage 14 | . 14 14 14 Energy Gun 6 | . 20 6 . Ballistic Gun 5 | . 6 7 1 Launcher 11 | . 1 12 13 Peak Build Rating 15 | 6 11 14 15 Average Rating 11 | 5 8 12 12 On Entrance 7 | . 6 11 13 Naked Turns . | . . . . Heaviest Build 50 | 11 27 28 50 Greatest Support 46 | 40 40 32 46 Greatest Overweight (x) 2 | 2 1 1 1 Average Overweight (x) . | . . . . Largest Inventory Capacity 20 | 8 15 15 20 Average Capacity 15 | 7 10 15 19 Most Carried 20 | 4 8 15 20 Average Carried 13 | 2 6 13 19 Final Capacity 20 | 8 15 15 20 Final Carried 18 | 4 8 15 18 Class Distribution -------------------- 100% | Mutant Dominant Class ---------------- Mutant | -10/Materials Mutant | -10/Mines Mutant | -10/Subcaves Resources | -11 -10 -10 -10 ----------- Run | Yrd Mat Min Sub Matter Collected 714 | 260 90 289 75 Remotely . | . . . . Salvage Created 394 | . 203 66 125 Parts 26 | . 7 3 16 Haulers Intercepted 2 | . 2 . . Recyclers Shooed . | . . . . Parts Field Recycled . | . . . . Retrieved Matter . | . . . . Parts Self-Destructed 6 | . . . 6 Prevented . | . . . . Kills | -11 -10 -10 -10 ------- Run | Yrd Mat Min Sub Combat Hostiles Destroyed 20 | . 2 6 12 Guns 6 | . 2 4 . Cannons 2 | . . . 2 AOE 12 | . . 2 10 Classes Destroyed 6 | . 2 3 1 Hauler 2 | . 2 . . Swarmer 10 | . . 3 7 Grunt 2 | . 2 . . Demolisher 2 | . . 2 . Subdweller 5 | . . . 5 Assembled 1 | . . 1 . Best Kill Streak 4 | . 1 3 4 Combat Bots Only 4 | . 1 3 4 Max Kills in Single Turn 4 | . 1 2 4 Gunslinging . | . . . . Exploded 4 | . . 2 4 Melee . | . . . . Uniques/NPCs Destroyed . | . . . . Combat | -11 -10 -10 -10 -------- Run | Yrd Mat Min Sub Hostile Shots Fired 85 | . 23 17 45 Missed 21 | . 6 3 12 Damage Taken 1085 | . 215 283 587 Core 252 | . 12 54 186 Absorbed by Shields . | . . . . Core Remaining (%) 100 | 100 . . . Volleys Fired 41 | . 18 11 12 Largest 2 | . 2 2 2 Hottest 100 | . 90 100 65 Shots Fired 78 | . 36 19 23 Gun 51 | . 36 12 3 Cannon 7 | . . . 7 Launcher 17 | . . 4 13 Special 3 | . . 3 . Kinetic 28 | . 12 6 10 Thermal 33 | . 24 9 . Explosive 17 | . . 4 13 Electromagnetic . | . . . . Robot Hit Streak 10 | . 8 4 10 Robot Miss Streak 3 | . 3 3 1 Penetration Max . | . . . . Secondary Targets 2 | . . 2 . Max Gunslinging Chain 1 | . . 1 . Shots Hit Robots 48 | . 25 7 16 Core Hits 33 | . 9 9 15 Critical Kills . | . . . . Critical Parts Destroyed . | . . . . Critical Strikes 1 | . . . 1 Blast 1 | . . . 1 Melee Attacks . | . . . . Impact . | . . . . Slashing . | . . . . Piercing . | . . . . Sneak Attacks . | . . . . Combat Hostiles . | . . . . Follow-up Attacks . | . . . . Damage Inflicted 1689 | . 323 142 1224 Guns 432 | . 323 77 32 Cannons 88 | . . . 88 Explosions 1169 | . . 65 1104 Melee . | . . . . Ramming . | . . . . Kinetic 258 | . 111 27 120 Thermal 262 | . 212 50 . Explosive 1169 | . . 65 1104 Electromagnetic . | . . . . Impact . | . . . . Slashing . | . . . . Piercing . | . . . . Highest Corruption . | . . . . Average Corruption . | . . . . Corruption Purged . | . . . . Corruption Blocked . | . . . . Overload Shots . | . . . . Overflow Damage 21 | . . . 21 Projectiles . | . . . . Explosions 21 | . . . 21 Melee . | . . . . Knockbacks 1 | . . . 1 Impact . | . . . . Kinetic 1 | . . . 1 Secondary . | . . . . Self-Inflicted Damage . | . . . . Shots . | . . . . Rammed . | . . . . Targets Rammed . | . . . . Kicked . | . . . . Crushed . | . . . . Highest Temperature 246 | . 246 36 10 Average Temperature 53 | . 73 13 10 Received Heat Transfer 213 | . 117 . 96 Siege Activations . | . . . . Robots Corrupted . | . . . . Combat Hostiles . | . . . . Parts Fried . | . . . . Impact Corruptions . | . . . . Robots Melted . | . . . . Combat Hostiles . | . . . . Parts Melted 2 | . 1 1 . Heat Transferred 717 | . 569 148 . Parts Sabotaged . | . . . . Parts Stolen . | . . . . Parts Stripped . | . . . . Power Chain Reactions . | . . . . Alert | -11 -10 -10 -10 ------- Run | Yrd Mat Min Sub Peak Influence 155 | . 114 155 . Initial 44 | . . 44 . Average 42 | . 52 44 . Maximum Alert Level . | . . . . Low Security (%) 100 | 100 100 100 . Level 1 . | . . . . Level 2 . | . . . . Level 3 . | . . . . Level 4 . | . . . . Level 5 . | . . . . High Security . | . . . . Max Security . | . . . . Squads Dispatched 1 | . 1 . . Investigation . | . . . . Extermination . | . . . . Reinforcement 1 | . 1 . . Assault . | . . . . Garrison . | . . . . Intercept . | . . . . Searches Triggered . | . . . . Construction Impeded . | . . . . Haulers Reinforced . | . . . . Active Scanning Responses . | . . . . Cargo Convoy Interrupts . | . . . . Stealth | -11 -10 -10 -10 --------- Run | Yrd Mat Min Sub Distress Signals 2 | . 1 1 . Communications Jammed . | . . . . Distress Signals . | . . . . Times Spotted 30 | . 8 6 16 Peak Tracking Total 6 | . 2 3 6 Tactical Retreats 1 | . . . 1 Traps | -11 -10 -10 -10 ------- Run | Yrd Mat Min Sub Traps Triggered 1 | . . . 1 Indirectly . | . . . . Trap Hack Attempts . | . . . . Triggered . | . . . . Disarmed . | . . . . Reprogrammed . | . . . . Reused . | . . . . Traps Extracted . | . . . . Installed 3 | . . 3 . Triggered 1 | . . . 1 Most Traps Carried 1 | . . 1 1 Machines | -11 -10 -10 -10 ---------- Run | Yrd Mat Min Sub Machines Disabled 1 | . . 1 . Max in Single Turn 1 | . . 1 . Machines Repaired . | . . . . Machines Dismantled . | . . . . Machines Sabotaged . | . . . . Overloaded Fab Kills . | . . . . Hacking | -11 -10 -10 -10 --------- Run | Yrd Mat Min Sub Machines Accessed 2 | . 2 . . Terminals 2 | . 2 . . Fabricators . | . . . . Repair Stations . | . . . . Recycling Units . | . . . . Scanalyzers . | . . . . Garrison Access . | . . . . Total Hacks 8 | . 8 . . Successful 5 | . 5 . . Failed 3 | . 3 . . Catastrophic 2 | . 2 . . Database Lockouts . | . . . . Manual 10 | . 8 2 . Terminals 8 | . 8 . . Fabricators . | . . . . Repair Stations . | . . . . Recycling Units . | . . . . Scanalyzers . | . . . . Garrison Access . | . . . . Terminal Hacks 3 | . 3 . . Robot Analysis 1 | . 1 . . Terminal Index 1 | . 1 . . Locate Traps 1 | . 1 . . Fabricator Hacks . | . . . . Repair Station Hacks . | . . . . Recycling Unit Hacks . | . . . . Scanalyzer . | . . . . Garrison Access Hacks . | . . . . Unauthorized Hacks 2 | . 2 . . Terminals 2 | . 2 . . Botnet 2 | . 2 . . Fabricators . | . . . . Repair Stations . | . . . . Recycling Units . | . . . . Scanalyzers . | . . . . Garrison Access . | . . . . Data Cores Recovered . | . . . . Used . | . . . . Hacking Detections 2 | . 2 . . Full Trace Events . | . . . . Feedback Events . | . . . . Feedback Blocked . | . . . . Robot Schematics Acquired . | . . . . Robots Built . | . . . . Authchips . | . . . . Time . | . . . . Total Robot Build Rating . | . . . . Part Schematics Acquired . | . . . . Parts Built . | . . . . Authchips . | . . . . Time . | . . . . Total Part Build Rating . | . . . . Parts Repaired . | . . . . Time . | . . . . Parts Recycled . | . . . . Recycled Matter . | . . . . Retrieved Matter . | . . . . Retrieved Components . | . . . . Parts Scanalyzed . | . . . . Part Schematics Acquired . | . . . . Parts Damaged . | . . . . Bothacking | -11 -10 -10 -10 ------------ Run | Yrd Mat Min Sub Used RIF Installer . | . . . . Robots Hacked . | . . . . Non-combat . | . . . . Combat . | . . . . Robot Hacks Applied . | . . . . Relay Couplers Released . | . . . . Fabnet Peak Effective % . | . . . . Robots Rewired . | . . . . Allies Hacked . | . . . . Hacks Repelled . | . . . . Allies | -11 -10 -10 -10 -------- Run | Yrd Mat Min Sub Total Allies 6 | . . 6 . Largest Group 6 | . . 6 . Highest-Rated Group 114 | . . 114 . Highest-Rated Ally 31 | . . 31 . Total Orders . | . . . . Ally Attacks 4 | . . 4 . Total Damage 44 | . . 44 . Kills . | . . . . Allies Corrupted . | . . . . Allies Melted . | . . . . Intel | -11 -10 -10 -10 ------- Run | Yrd Mat Min Sub Robot Analysis Total 1 | . 1 . . Derelict Logs Recovered 2 | . . 1 1 Drone Launches . | . . . . Drone Recoveries . | . . . . Exploration | -11 -10 -10 -10 ------------- Run | Yrd Mat Min Sub Turns Passed 2183 | 107 275 1172 629 Spaces Moved 1606 | 66 145 906 489 Core 13 | 13 . . . Treads 112 | 53 59 . . Legs 1031 | . 86 906 39 Wheels 450 | . . . 450 Hover . | . . . . Flight . | . . . . Fastest Speed 50 | 50 120 120 110 Average Speed 121 | 144 137 120 115 Slowest Speed 190 | 160 190 190 190 Overloaded Moves . | . . . . Propulsion Burnouts . | . . . . Robots Hopped . | . . . . Cave-ins Triggered . | . . . . Exploration Rate (%) 40 | 5 30 101 26 Regions Visited 3 Branch Regions 2 Pre-discovered Areas . | . . . . Known Exits Taken . | . . . . Unknown Exits Taken 3 | 1 1 1 . Scrap Searched 3 | . . 3 . Spaces Dug 1 | . . 1 . Terrain Destroyed 92 | . . 12 80 Melee . | . . . . Projectile 1 | . . 1 . AOE 91 | . . 11 80 Terrain Rammed . | . . . . Walls Destroyed . | . . . . Machines Disabled . | . . . . Actions | -11 -10 -10 -10 --------- Run | Yrd Mat Min Sub Total 1757 | 75 185 963 534 Wait 25 | . 3 22 . Move 1603 | 65 144 905 489 Hop . | . . . . Pick Up 33 | 4 7 11 11 Fast Attach 14 | 6 5 . 3 Attach 4 | . . 1 3 Detach . | . . . . Swap 14 | . 1 7 6 Drop 20 | . 7 3 10 Fire 41 | . 18 11 12 Melee . | . . . . Ram . | . . . . Kick . | . . . . Crush . | . . . . Escape Stasis . | . . . . Rewire . | . . . . Trap 3 | . . 3 . Miscellaneous . | . . . . Route ------- -11/Scrapyard -10/Materials -10/Mines (discovered 3 exits: [*Mat x2] / [*Sub]) -10/Subcaves (discovered 1 exit: Mat) History --------- Turn | Location | Event 18 | -11/Scrapyard | Discovered new exit (range 16) 108 | -11/Scrapyard | Entered Materials 187 | -10/Materials | Discovered new exit (range 14) 318 | -10/Materials | Build established: Mutant 383 | -10/Materials | Entered Mines 419 | -10/Mines | Learned Materials interactive machine intel 425 | -10/Mines | Assisted by bots powering up and referring to "LRC-V3" 449 | -10/Mines | Found a hidden stash of uninstalled traps 632 | -10/Mines | Assembled infested the area 637 | -10/Mines | Assisted by a Guerilla fighting off Assembled 726 | -10/Mines | Discovered new exit (range 6) 728 | -10/Mines | Received a Mining Laser from a helpful Derelict 1068 | -10/Mines | Lost 5 allies 1168 | -10/Mines | Discovered new exit (range 4) 1553 | -10/Mines | Discovered new exit (range 3) 1555 | -10/Mines | Entered Subcaves 1767 | -10/Subcaves | Identified exit to Materials 1779 | -10/Subcaves | Core integrity fell below 50% 1980 | -10/Subcaves | Shifting Twisted Machinery released Sub. Power Source 1985 | -10/Subcaves | Shifting Twisted Machinery released Shrapnel Trap 2049 | -10/Subcaves | Core integrity fell below 20% 2184 | -10/Subcaves | Destroyed by F7-3NC(R) with Subdweller Shrapnel Launcher Last Messages --------------- down. 02016_ 4Y-3PY(R) destroyed. 02017_ The unstable cave ceiling collapses. 02024_ 0X-MJV(R) destroyed. 02029_ Acquired 1 matter. 02030_ The unstable cave ceiling collapses. 02034_ Humpback crushed. 02048_ S-10 Pest destroyed. 02048_ Destroyed Lgt. Ion Engine. 02048_ S-10 Pest destroyed. 02050_ Mni. Grenade Launcher destroyed. 02050_ Broken Sub. Monowheel destroyed. 02054_ The unstable cave ceiling collapses. 02057_ Flight Unit fries itself beyond repair. 02061_ The unstable cave ceiling collapses. 02102_ Sub. Power Source shoots sparks and powers down. 02140_ Acquired Ion Engine. 02182_ Sub. Monowheel destroyed. 02184_ Mni. Grenade Launcher destroyed. Map ----- +----------------------------------------------------+ | ???????## # ### ##?????## #?????????????? | | ???????# ""#######??##### #?????????????? | | ???????# " #??# ##?????????????? | | ???????##^ ^ ##??# ##??????????????? | | ????????#### #???# ##???????????????? | | ???????????##### ####???# ###????????????????? | | ???????????????## #????## ###??????????????????? | | ???????????????# ##???## ##????????????????????? | | ???????????????####????# #?????????????????????? | | ??????????????????????## ##?????????????????????? | | ??????????????????????# ########???????????????? | | ???????????????????#### # #???????????????? | | ???????????????????# # #" & "#???????????????? | | ??????????????????## #& " " #???????????????? | | ??????????????????## * "#???????????????? | | ?????###??????????# & & #???????????????? | | ?????# #??????????# # ####?##????????????? | | ?????# #??????????# ## ## ### #????????????? | | ?????# #????????### ###?### #????????????? | | ????# ##???????# ## ##??# #????????????? | | ???## #####???# ### #### #????????????? | | ???# ## ##??# ##; ;#; #????????????? | | #### #### ;; ###??????????? | | ## R #??????????? | | ### ##??????????? | | ###### # @ ##???????????????? | | ##????#### ##???????????????? | | #????????## ##??????????????? | | ###?????????####; ## ###????????????? | | ######??????????????#; ;;;;;## ##???????????? | | ????????????????????## ####### ##??????????? | | ?????????????????????## ##?????## #??????????? | | ??????????????????????###???????# ##??????????? | | ????????????????????????????????## #???????????? | | ????????????????????????????????# ##???????????? | | ????????????????????????????????# #????????????? | | ????????????????????????????????## ##???????????? | | ????????????????????????????????## #???????????? | | ????????????????????????????????# ##???????????? | | ????????????????????????????????## #???????????? | | ?????????????????????????????????# ##???????????? | | ????????????????????????????????## ##???????????? | | ????????????????????????????????# "" #???????????? | | ????????????????????????????????# ""##???????????? | | ????????????????????????????????## " #???????????? | | ????????????????????????????????## ##??????????? | | ????????????????????????####???## #??????????? | | ???????????????????????##"""?### #??????????? | | ???????????????????????#"""#?# "" " ##??????????? | | ???????????????????????#" ### " "##???????????? | +----------------------------------------------------+ Best States ------------- Heat Dissipation 25 Energy Generation 15 Energy Capacity 250 Matter Stores 300 Matter Capacity 300 Sight Range 16 Terrain Scan Density 10 Additional Mass Support 6 Evasion (%) 55 Recoil Reduction 2 Item Schematics ----------------- None Robot Schematics ------------------ None Fabricated ------------ Nothing Alien Tech Used ----------------- None Achievements -------------- None Challenges ------------ None Game ------ Seed SpectralSpliceCasing Manual? 0 Play Time 00:24:53 Cumulative 181.4 hours Start 2025.04.26 @ 14:06:55 End 2025.04.26 @ 14:29:02 Sessions 1 Manual Loads 0 Difficulty Rogue Special Mode None Game No. 178 Rogue 178 Adventurer 0 Explorer 0 Win Type - Total 1 Types 1/0/0/0/0/0/0/0/0 Lore% 66 Gallery% 59 Achievement% 47 Wizard Run 0 Options --------- Layout 1 ASCII 0 Keyboard 0 Movement Mouse Keybinds 0 Fullscreen 1 Font 24/Smallcaps Map View 50x35 Zoom Use 0% Tactical HUD 1 Map Filters NONE Filters NONE Steam 1 RUN: 3976d6e6-7fb5-4300-923f-5b5624633265